[Event "Early-Titled-Tuesday-Blitz-April-02-2024"]
[Site "Chess.com"]
[Date "2024.04.02"]
[Round "10"]
[White "Djager97"]
[Black "Louis-Paulsen-Fan"]
[Result "1/2-1/2"]
[WhiteElo "2575"]
[BlackElo "2301"]
[TimeControl "180+1"]
[EndTime "9:57:22 PDT"]
[Termination "Game drawn by repetition"]

1. e4 {[%clk 0:03:00.9]} 1... Nf6 {[%clk 0:02:59.9]} 2. Nc3 {[%clk 0:02:58.9]}
2... e5 {[%clk 0:02:59.8]} 3. Bc4 {[%clk 0:02:46.4]} 3... Nc6 {[%clk 0:02:59.1]}
4. d3 {[%clk 0:02:43.1]} 4... Na5 {[%clk 0:02:46]} 5. Bg5 {[%clk 0:02:26.9]}
5... Nxc4 {[%clk 0:02:45.3]} 6. dxc4 {[%clk 0:02:27.8]} 6... d6 {[%clk
0:02:44.1]} 7. Qd3 {[%clk 0:02:15.6]} 7... Be7 {[%clk 0:02:40.8]} 8. O-O-O
{[%clk 0:02:11.2]} 8... Be6 {[%clk 0:02:35]} 9. Nge2 {[%clk 0:02:06.9]} 9... Ng4
{[%clk 0:02:15.1]} 10. Bxe7 {[%clk 0:02:03.9]} 10... Qxe7 {[%clk 0:02:16]} 11.
Qg3 {[%clk 0:01:56]} 11... O-O-O {[%clk 0:01:59.3]} 12. h3 {[%clk 0:01:54.1]}
12... Nf6 {[%clk 0:01:59.2]} 13. Qd3 {[%clk 0:01:52.5]} 13... c6 {[%clk
0:01:49.4]} 14. Qe3 {[%clk 0:01:49]} 14... Kb8 {[%clk 0:01:48.9]} 15. b3 {[%clk
0:01:49.1]} 15... h6 {[%clk 0:01:45.9]} 16. Kb2 {[%clk 0:01:48.7]} 16... Qc7
{[%clk 0:01:45.4]} 17. f4 {[%clk 0:01:40.2]} 17... exf4 {[%clk 0:01:35.5]} 18.
Nxf4 {[%clk 0:01:41.1]} 18... Rhe8 {[%clk 0:01:33.9]} 19. Nxe6 {[%clk
0:01:37.1]} 19... Rxe6 {[%clk 0:01:31.7]} 20. Qg3 {[%clk 0:01:37.3]} 20... g6
{[%clk 0:01:24.8]} 21. Qf4 {[%clk 0:01:23.6]} 21... Rde8 {[%clk 0:01:21.3]} 22.
Rhe1 {[%clk 0:01:21.3]} 22... d5 {[%clk 0:01:05.6]} 23. Qxc7+ {[%clk 0:01:18.8]}
23... Kxc7 {[%clk 0:01:06.5]} 24. cxd5 {[%clk 0:01:17.3]} 24... cxd5 {[%clk
0:01:06.1]} 25. Nxd5+ {[%clk 0:01:11]} 25... Nxd5 {[%clk 0:01:05.9]} 26. Rxd5
{[%clk 0:01:11.9]} 26... Rxe4 {[%clk 0:01:06.1]} 27. Red1 {[%clk 0:01:00.7]}
27... R8e7 {[%clk 0:01:03.9]} 28. a4 {[%clk 0:00:58]} 28... a6 {[%clk
0:01:03.3]} 29. a5 {[%clk 0:00:57.3]} 29... Re2 {[%clk 0:01:02.1]} 30. R1d2
{[%clk 0:00:57.2]} 30... Rxd2 {[%clk 0:01:01.9]} 31. Rxd2 {[%clk 0:00:57.1]}
31... Re3 {[%clk 0:00:59.5]} 32. b4 {[%clk 0:00:48.8]} 32... Kc6 {[%clk
0:00:53.8]} 33. c3 {[%clk 0:00:48.9]} 33... Rg3 {[%clk 0:00:52.3]} 34. Kb3
{[%clk 0:00:48.9]} 34... f5 {[%clk 0:00:47.6]} 35. Kc4 {[%clk 0:00:46.8]} 35...
g5 {[%clk 0:00:47.5]} 36. Re2 {[%clk 0:00:25.9]} 36... f4 {[%clk 0:00:45.4]} 37.
Kd4 {[%clk 0:00:20.4]} 37... f3 {[%clk 0:00:42.6]} 38. gxf3 {[%clk 0:00:20.1]}
38... Rxh3 {[%clk 0:00:41.4]} 39. Re6+ {[%clk 0:00:15.4]} 39... Kd7 {[%clk
0:00:41.1]} 40. Rg6 {[%clk 0:00:15.5]} 40... Rxf3 {[%clk 0:00:25]} 41. Rxh6
{[%clk 0:00:15.6]} 41... Rf4+ {[%clk 0:00:24.7]} 42. Kc5 {[%clk 0:00:15.6]}
42... Kc7 {[%clk 0:00:18.3]} 43. Rh7+ {[%clk 0:00:10.3]} 43... Kb8 {[%clk
0:00:18.3]} 44. c4 {[%clk 0:00:10.3]} 44... Rf5+ {[%clk 0:00:17.6]} 45. Kd4
{[%clk 0:00:08.4]} 45... Rf4+ {[%clk 0:00:17.9]} 46. Kd5 {[%clk 0:00:08.6]}
46... Rf5+ {[%clk 0:00:17.4]} 47. Ke6 {[%clk 0:00:07]} 47... Rf4 {[%clk
0:00:16.3]} 48. Kd5 {[%clk 0:00:02.6]} 48... Rf5+ {[%clk 0:00:16.5]} 49. Ke4
{[%clk 0:00:02.2]} 49... Rf4+ {[%clk 0:00:16.8]} 50. Kd3 {[%clk 0:00:02.7]}
50... Rf3+ {[%clk 0:00:17.1]} 51. Kd2 {[%clk 0:00:01.4]} 51... Rf2+ {[%clk
0:00:16.4]} 52. Kc3 {[%clk 0:00:01.8]} 52... Rf3+ {[%clk 0:00:16.3]} 53. Kc2
{[%clk 0:00:02.3]} 53... Rf2+ {[%clk 0:00:16.7]} 54. Kb3 {[%clk 0:00:02.8]}
54... Rf3+ {[%clk 0:00:16.3]} 55. Ka4 {[%clk 0:00:03.4]} 55... Rf4 {[%clk
0:00:16.6]} 56. c5 {[%clk 0:00:03.9]} 56... g4 {[%clk 0:00:16]} 57. Rg7 {[%clk
0:00:04.4]} 57... Re4 {[%clk 0:00:15.9]} 58. Kb3 {[%clk 0:00:04.3]} 58... Rf4
{[%clk 0:00:15]} 59. Kc3 {[%clk 0:00:04.5]} 59... Re4 {[%clk 0:00:15.1]} 60. Kb3
{[%clk 0:00:04.5]} 60... Rf4 {[%clk 0:00:15.4]} 61. Kc3 {[%clk 0:00:04.5]} 61...
Re4 {[%clk 0:00:15.6]} 62. Kb3 {[%clk 0:00:03.2]} 1/2-1/2

[Event "Early-Titled-Tuesday-Blitz-April-02-2024"]
[Site "Chess.com"]
[Date "2024.04.02"]
[Round "10"]
[White "Likvidator228"]
[Black "Smiechu"]
[Result "1/2-1/2"]
[WhiteElo "2557"]
[BlackElo "2466"]
[TimeControl "180+1"]
[EndTime "9:57:23 PDT"]
[Termination "Game drawn by repetition"]

1. d4 {[%clk 0:03:00.9]} 1... Nf6 {[%clk 0:02:59.3]} 2. Bf4 {[%clk 0:03:00.7]}
2... c5 {[%clk 0:02:59.6]} 3. e3 {[%clk 0:03:00.9]} 3... g6 {[%clk 0:02:58.2]}
4. c3 {[%clk 0:03:00.9]} 4... b6 {[%clk 0:02:54.8]} 5. Nf3 {[%clk 0:03:00.3]}
5... Bb7 {[%clk 0:02:53.6]} 6. h3 {[%clk 0:03:00.8]} 6... Bg7 {[%clk 0:02:52.1]}
7. Nbd2 {[%clk 0:03:01.4]} 7... O-O {[%clk 0:02:51.4]} 8. a4 {[%clk 0:03:01.7]}
8... a6 {[%clk 0:02:48.6]} 9. Be2 {[%clk 0:03:01.7]} 9... d6 {[%clk 0:02:48.1]}
10. O-O {[%clk 0:03:01.7]} 10... Nbd7 {[%clk 0:02:48]} 11. Qb3 {[%clk
0:02:55.3]} 11... Rc8 {[%clk 0:02:45.4]} 12. Bc4 {[%clk 0:02:54]} 12... h6
{[%clk 0:02:40.3]} 13. Rfe1 {[%clk 0:02:50.7]} 13... Ne4 {[%clk 0:02:37.4]} 14.
Nxe4 {[%clk 0:02:49.9]} 14... Bxe4 {[%clk 0:02:37.2]} 15. Bd5 {[%clk 0:02:46.6]}
15... Bxd5 {[%clk 0:02:33.7]} 16. Qxd5 {[%clk 0:02:47.5]} 16... Nf6 {[%clk
0:02:32.6]} 17. Qb3 {[%clk 0:02:46.7]} 17... c4 {[%clk 0:02:27]} 18. Qc2 {[%clk
0:02:44.7]} 18... Qd7 {[%clk 0:02:17]} 19. e4 {[%clk 0:02:44.4]} 19... e6 {[%clk
0:02:15.1]} 20. Bxd6 {[%clk 0:02:33.4]} 20... Qxd6 {[%clk 0:02:09.2]} 21. e5
{[%clk 0:02:33.9]} 21... Qc6 {[%clk 0:02:02.2]} 22. exf6 {[%clk 0:02:34]} 22...
Bxf6 {[%clk 0:02:02.3]} 23. Ne5 {[%clk 0:02:34.5]} 23... Bxe5 {[%clk 0:01:56.8]}
24. Rxe5 {[%clk 0:02:34.4]} 24... Rcd8 {[%clk 0:01:56.3]} 25. a5 {[%clk
0:02:33.6]} 25... b5 {[%clk 0:01:54.5]} 26. f4 {[%clk 0:02:28.5]} 26... Rd5
{[%clk 0:01:49.6]} 27. Qe2 {[%clk 0:02:08.5]} 27... Qc7 {[%clk 0:01:46.6]} 28.
Qe4 {[%clk 0:02:04.5]} 28... Rxe5 {[%clk 0:01:46.2]} 29. fxe5 {[%clk 0:02:04.7]}
29... Rc8 {[%clk 0:01:41.1]} 30. Qf4 {[%clk 0:02:02.9]} 30... Qc6 {[%clk
0:01:38.9]} 31. Qxh6 {[%clk 0:02:01.4]} 31... b4 {[%clk 0:01:36]} 32. Rf1 {[%clk
0:01:46.4]} 32... bxc3 {[%clk 0:01:32]} 33. bxc3 {[%clk 0:01:46.9]} 33... Rb8
{[%clk 0:01:22.4]} 34. h4 {[%clk 0:01:40]} 34... Qe4 {[%clk 0:01:14.8]} 35. Qg5
{[%clk 0:01:34.4]} 35... Rb1 {[%clk 0:01:04.9]} 36. Rxb1 {[%clk 0:01:27.6]}
36... Qxb1+ {[%clk 0:01:04.5]} 37. Kh2 {[%clk 0:01:28.2]} 37... Qd1 {[%clk
0:01:01.8]} 38. Qd8+ {[%clk 0:00:53.3]} 38... Kh7 {[%clk 0:00:57.6]} 39. Qc7
{[%clk 0:00:48.9]} 39... Kg7 {[%clk 0:00:56.1]} 40. Qxc4 {[%clk 0:00:48.9]}
40... Qe1 {[%clk 0:00:48.3]} 41. g3 {[%clk 0:00:37.4]} 41... Qf2+ {[%clk
0:00:45.6]} 42. Kh3 {[%clk 0:00:36.7]} 42... Qf5+ {[%clk 0:00:44.3]} 43. Kg2
{[%clk 0:00:34.3]} 43... Qc2+ {[%clk 0:00:44.2]} 44. Kg1 {[%clk 0:00:29.6]}
44... Qc1+ {[%clk 0:00:42.8]} 45. Kh2 {[%clk 0:00:26.9]} 45... Qc2+ {[%clk
0:00:41.1]} 46. Kh3 {[%clk 0:00:25.4]} 46... Qf5+ {[%clk 0:00:40.7]} 47. Kh2
{[%clk 0:00:25.7]} 47... Qc2+ {[%clk 0:00:40.1]} 48. Kg1 {[%clk 0:00:26]} 48...
Qc1+ {[%clk 0:00:38.6]} 49. Kf2 {[%clk 0:00:26.3]} 49... Qd2+ {[%clk 0:00:36]}
50. Kf3 {[%clk 0:00:25.8]} 50... Qd1+ {[%clk 0:00:30]} 51. Qe2 {[%clk
0:00:25.8]} 51... Qh1+ {[%clk 0:00:29.8]} 52. Ke3 {[%clk 0:00:23.7]} 52... Qc1+
{[%clk 0:00:27.8]} 53. Kd3 {[%clk 0:00:21.2]} 53... Qb1+ {[%clk 0:00:26.9]} 54.
Ke3 {[%clk 0:00:20.4]} 54... Qc1+ {[%clk 0:00:26.5]} 55. Qd2 {[%clk 0:00:20.8]}
55... Qg1+ {[%clk 0:00:21.8]} 56. Kf3 {[%clk 0:00:20.7]} 56... Qh1+ {[%clk
0:00:18.8]} 57. Kg4 {[%clk 0:00:15.3]} 57... Qe4+ {[%clk 0:00:18.7]} 58. Qf4
{[%clk 0:00:15.2]} 58... Qe2+ {[%clk 0:00:18.4]} 59. Qf3 {[%clk 0:00:15.4]}
59... Qe1 {[%clk 0:00:15.3]} 60. h5 {[%clk 0:00:15.2]} 60... gxh5+ {[%clk
0:00:11.5]} 61. Kxh5 {[%clk 0:00:15.3]} 61... Qc1 {[%clk 0:00:10.7]} 62. Kg4
{[%clk 0:00:14.4]} 62... Qe1 {[%clk 0:00:09.5]} 63. Qf6+ {[%clk 0:00:14]} 63...
Kg8 {[%clk 0:00:09.6]} 64. Qf3 {[%clk 0:00:14.6]} 64... Kg7 {[%clk 0:00:09]} 65.
Kf4 {[%clk 0:00:12]} 65... Qc1+ {[%clk 0:00:08.8]} 66. Kg4 {[%clk 0:00:12.3]}
66... Qe1 {[%clk 0:00:08.8]} 1/2-1/2

[Event "Early-Titled-Tuesday-Blitz-April-02-2024"]
[Site "Chess.com"]
[Date "2024.04.02"]
[Round "10"]
[White "Byniolus"]
[Black "superchess02"]
[Result "0-1"]
[WhiteElo "2788"]
[BlackElo "2870"]
[TimeControl "180+1"]
[EndTime "9:57:24 PDT"]
[Termination "superchess02 won by resignation"]

1. d4 {[%clk 0:03:00.9]} 1... Nf6 {[%clk 0:02:59.8]} 2. Nf3 {[%clk 0:03:01.1]}
2... d5 {[%clk 0:02:59.5]} 3. Bf4 {[%clk 0:03:01.1]} 3... c5 {[%clk 0:02:58.3]}
4. c3 {[%clk 0:03:01.7]} 4... Nc6 {[%clk 0:02:57.9]} 5. Nbd2 {[%clk 0:03:02.3]}
5... e6 {[%clk 0:02:56.8]} 6. e3 {[%clk 0:03:02.5]} 6... Be7 {[%clk 0:02:56.3]}
7. Bd3 {[%clk 0:03:02.5]} 7... Nh5 {[%clk 0:02:55.3]} 8. Be5 {[%clk 0:03:03]}
8... f6 {[%clk 0:02:52.6]} 9. Bg3 {[%clk 0:03:03.3]} 9... g6 {[%clk 0:02:45.6]}
10. Bh4 {[%clk 0:03:03.1]} 10... cxd4 {[%clk 0:02:43.6]} 11. cxd4 {[%clk
0:03:01.7]} 11... Bd7 {[%clk 0:02:42.8]} 12. O-O {[%clk 0:02:59.1]} 12... Qb6
{[%clk 0:02:39.5]} 13. Qb3 {[%clk 0:02:58.3]} 13... Qxb3 {[%clk 0:02:35.6]} 14.
Nxb3 {[%clk 0:02:57.7]} 14... g5 {[%clk 0:02:35]} 15. Bg3 {[%clk 0:02:56.5]}
15... Nxg3 {[%clk 0:02:35.7]} 16. hxg3 {[%clk 0:02:57.4]} 16... Nb4 {[%clk
0:02:36.4]} 17. Be2 {[%clk 0:02:54.3]} 17... Bd6 {[%clk 0:02:34.5]} 18. a3
{[%clk 0:02:51.8]} 18... Nc6 {[%clk 0:02:34.6]} 19. Rfc1 {[%clk 0:02:48.7]}
19... Ke7 {[%clk 0:02:32.8]} 20. Nc5 {[%clk 0:02:48.1]} 20... Rab8 {[%clk
0:02:32.4]} 21. Rc3 {[%clk 0:02:44.3]} 21... Rhc8 {[%clk 0:02:27.8]} 22. Rac1
{[%clk 0:02:42.9]} 22... Be8 {[%clk 0:02:27.8]} 23. Bd3 {[%clk 0:02:35.5]} 23...
h6 {[%clk 0:02:21.4]} 24. b4 {[%clk 0:02:30.2]} 24... Nd8 {[%clk 0:02:18.8]} 25.
g4 {[%clk 0:02:17.7]} 25... h5 {[%clk 0:02:16]} 26. gxh5 {[%clk 0:02:15.2]}
26... Bxh5 {[%clk 0:02:16.9]} 27. Nd2 {[%clk 0:02:08.9]} 27... Be8 {[%clk
0:02:08.8]} 28. g3 {[%clk 0:02:06.3]} 28... Rc7 {[%clk 0:02:05]} 29. Nb1 {[%clk
0:01:56.2]} 29... f5 {[%clk 0:01:37.7]} 30. f4 {[%clk 0:01:51.9]} 30... g4
{[%clk 0:01:36.8]} 31. Kf2 {[%clk 0:01:46.1]} 31... Kf6 {[%clk 0:01:35.9]} 32.
Be2 {[%clk 0:01:35]} 32... Rh7 {[%clk 0:01:25.8]} 33. Kg2 {[%clk 0:01:27.5]}
33... Nf7 {[%clk 0:01:23.4]} 34. Rh1 {[%clk 0:01:10.4]} 34... Rxh1 {[%clk
0:01:22.9]} 35. Kxh1 {[%clk 0:01:11.3]} 35... Be7 {[%clk 0:01:23.7]} 36. Nd3
{[%clk 0:01:01.7]} 36... Bb5 {[%clk 0:01:21.7]} 37. Kg2 {[%clk 0:00:58.7]} 37...
Rh8 {[%clk 0:01:08.8]} 38. Rc7 {[%clk 0:00:28.6]} 38... Nd6 {[%clk 0:00:41.1]}
39. Nc3 {[%clk 0:00:19.8]} 39... Bd8 {[%clk 0:00:23.8]} 40. Rc5 {[%clk
0:00:14.8]} 40... Bxd3 {[%clk 0:00:18.6]} 41. Bxd3 {[%clk 0:00:13.8]} 41... Bb6
{[%clk 0:00:18.9]} 42. Nxd5+ {[%clk 0:00:04.5]} 42... exd5 {[%clk 0:00:19.8]}
43. Rxd5 {[%clk 0:00:05.4]} 43... Ne4 {[%clk 0:00:17]} 44. a4 {[%clk 0:00:03.9]}
44... Rc8 {[%clk 0:00:16.3]} 45. a5 {[%clk 0:00:03.4]} 45... Bd8 {[%clk
0:00:14.8]} 46. Bxe4 {[%clk 0:00:03.5]} 46... fxe4 {[%clk 0:00:15.7]} 47. Re5
{[%clk 0:00:04.4]} 47... Rc2+ {[%clk 0:00:15]} 48. Kf1 {[%clk 0:00:05.1]} 48...
Be7 {[%clk 0:00:14.8]} 49. b5 {[%clk 0:00:04.8]} 49... Rb2 {[%clk 0:00:12.8]}
50. a6 {[%clk 0:00:04.5]} 50... b6 {[%clk 0:00:12.9]} 51. d5 {[%clk 0:00:04.7]}
51... Rxb5 {[%clk 0:00:12]} 52. Re6+ {[%clk 0:00:04.3]} 52... Kf7 {[%clk
0:00:12.4]} 53. Rxe4 {[%clk 0:00:04.8]} 53... Rxd5 {[%clk 0:00:12.3]} 54. Ke2
{[%clk 0:00:04.1]} 54... Ra5 {[%clk 0:00:11.9]} 55. Rc4 {[%clk 0:00:02.9]} 55...
Rxa6 {[%clk 0:00:11.9]} 56. Rc7 {[%clk 0:00:03.8]} 56... Ra3 {[%clk 0:00:11.3]}
57. e4 {[%clk 0:00:04.1]} 57... Rxg3 {[%clk 0:00:09.9]} 58. e5 {[%clk
0:00:04.9]} 58... Rf3 {[%clk 0:00:09.9]} 0-1

[Event "Early-Titled-Tuesday-Blitz-April-02-2024"]
[Site "Chess.com"]
[Date "2024.04.02"]
[Round "10"]
[White "ljuks68"]
[Black "GMthekingindian"]
[Result "0-1"]
[WhiteElo "2399"]
[BlackElo "2246"]
[TimeControl "180+1"]
[EndTime "9:57:42 PDT"]
[Termination "GMthekingindian won on time"]

1. e4 {[%clk 0:02:43.7]} 1... c5 {[%clk 0:02:22.6]} 2. Nf3 {[%clk 0:02:41.4]}
2... d6 {[%clk 0:02:22.8]} 3. d4 {[%clk 0:02:41.3]} 3... cxd4 {[%clk 0:02:23.7]}
4. Nxd4 {[%clk 0:02:40.7]} 4... Nf6 {[%clk 0:02:24.3]} 5. Nc3 {[%clk 0:02:40.6]}
5... a6 {[%clk 0:02:24.7]} 6. Bg5 {[%clk 0:02:40.4]} 6... e6 {[%clk 0:02:25.1]}
7. f4 {[%clk 0:02:39.9]} 7... h6 {[%clk 0:02:24.7]} 8. Bxf6 {[%clk 0:02:35.8]}
8... Qxf6 {[%clk 0:02:23.7]} 9. Qd2 {[%clk 0:02:35.3]} 9... g5 {[%clk
0:02:01.2]} 10. f5 {[%clk 0:02:30]} 10... Nc6 {[%clk 0:01:50.8]} 11. Nxc6 {[%clk
0:02:28.4]} 11... bxc6 {[%clk 0:01:51.7]} 12. Bd3 {[%clk 0:02:25.3]} 12... Rb8
{[%clk 0:01:50.5]} 13. Rb1 {[%clk 0:02:19.6]} 13... Bg7 {[%clk 0:01:46.4]} 14.
O-O {[%clk 0:02:17.1]} 14... exf5 {[%clk 0:01:14.9]} 15. exf5 {[%clk 0:02:14.9]}
15... O-O {[%clk 0:01:08.4]} 16. Kh1 {[%clk 0:02:04.5]} 16... d5 {[%clk
0:01:07.3]} 17. Na4 {[%clk 0:01:43]} 17... Re8 {[%clk 0:00:56]} 18. b3 {[%clk
0:01:42.1]} 18... Qd4 {[%clk 0:00:40.3]} 19. Qf2 {[%clk 0:01:12.1]} 19... Qxf2
{[%clk 0:00:38.8]} 20. Rxf2 {[%clk 0:01:12]} 20... Bd4 {[%clk 0:00:38.1]} 21.
Rff1 {[%clk 0:01:12]} 21... f6 {[%clk 0:00:33.5]} 22. Rbe1 {[%clk 0:01:09.9]}
22... Bb7 {[%clk 0:00:25.9]} 23. c3 {[%clk 0:01:01.5]} 23... Ba7 {[%clk
0:00:23]} 24. c4 {[%clk 0:01:00.1]} 24... Kf7 {[%clk 0:00:18.1]} 25. c5 {[%clk
0:00:59.1]} 25... Rxe1 {[%clk 0:00:15.6]} 26. Rxe1 {[%clk 0:00:58.2]} 26... Re8
{[%clk 0:00:16.5]} 27. Rxe8 {[%clk 0:00:57]} 27... Kxe8 {[%clk 0:00:17.4]} 28.
Kg1 {[%clk 0:00:53.9]} 28... a5 {[%clk 0:00:13.2]} 29. Kf2 {[%clk 0:00:53.3]}
29... Bc8 {[%clk 0:00:13]} 30. Ke3 {[%clk 0:00:51.8]} 30... Ke7 {[%clk
0:00:12.6]} 31. Kd4 {[%clk 0:00:50.9]} 31... Bb8 {[%clk 0:00:12.7]} 32. h3
{[%clk 0:00:48.4]} 32... Be5+ {[%clk 0:00:12.5]} 33. Ke3 {[%clk 0:00:48.3]}
33... h5 {[%clk 0:00:11.6]} 34. Nb6 {[%clk 0:00:42.6]} 34... Bd7 {[%clk
0:00:11.5]} 35. Kd2 {[%clk 0:00:36.9]} 35... Bd4 {[%clk 0:00:10.3]} 36. Na4
{[%clk 0:00:34.5]} 36... Kd8 {[%clk 0:00:08.1]} 37. Ke2 {[%clk 0:00:31.3]} 37...
Kc7 {[%clk 0:00:07.2]} 38. Kf3 {[%clk 0:00:29]} 38... Be8 {[%clk 0:00:07.1]} 39.
Kg3 {[%clk 0:00:24.5]} 39... Bg1 {[%clk 0:00:06.5]} 40. Be2 {[%clk 0:00:23.2]}
40... h4+ {[%clk 0:00:05.8]} 41. Kf3 {[%clk 0:00:18.5]} 41... Bh5+ {[%clk
0:00:05.1]} 42. g4 {[%clk 0:00:18.8]} 42... hxg3+ {[%clk 0:00:04.9]} 43. Kg2
{[%clk 0:00:19.4]} 43... Bxe2 {[%clk 0:00:04.6]} 44. Kxg1 {[%clk 0:00:19.9]}
44... Bd3 {[%clk 0:00:04.9]} 45. Kg2 {[%clk 0:00:19.5]} 45... Bxf5 {[%clk
0:00:05.1]} 46. Kxg3 {[%clk 0:00:20]} 46... d4 {[%clk 0:00:05.2]} 47. Nb2 {[%clk
0:00:11.5]} 47... d3 {[%clk 0:00:05.2]} 48. Nc4 {[%clk 0:00:11.4]} 48... Be6
{[%clk 0:00:04.5]} 49. Nd2 {[%clk 0:00:10.4]} 49... f5 {[%clk 0:00:04.4]} 50. h4
{[%clk 0:00:11.1]} 50... f4+ {[%clk 0:00:04.2]} 51. Kf3 {[%clk 0:00:10.1]} 51...
gxh4 {[%clk 0:00:04.8]} 52. Kxf4 {[%clk 0:00:09.6]} 52... h3 {[%clk 0:00:05.4]}
53. Kg3 {[%clk 0:00:09.4]} 53... Kd7 {[%clk 0:00:05.4]} 54. Ne4 {[%clk 0:00:06]}
54... Bf5 {[%clk 0:00:05.2]} 55. Nd2 {[%clk 0:00:05.1]} 55... Ke6 {[%clk
0:00:05.7]} 56. a3 {[%clk 0:00:05.6]} 56... Ke5 {[%clk 0:00:06]} 57. b4 {[%clk
0:00:01.8]} 57... axb4 {[%clk 0:00:06.9]} 58. axb4 {[%clk 0:00:02]} 58... Kd5
{[%clk 0:00:07.6]} 59. Kh2 {[%clk 0:00:01]} 59... Kd4 {[%clk 0:00:07.6]} 60. Kg3
{[%clk 0:00:01.2]} 60... Kc3 {[%clk 0:00:07.8]} 61. b5 {[%clk 0:00:01.1]} 61...
cxb5 {[%clk 0:00:07.7]} 62. Kf4 {[%clk 0:00:02]} 62... Bc8 {[%clk 0:00:07.1]}
63. Ne4+ {[%clk 0:00:02.5]} 63... Kc2 {[%clk 0:00:07.2]} 64. Nd6 {[%clk
0:00:03.3]} 64... Bd7 {[%clk 0:00:06.7]} 0-1

[Event "Early-Titled-Tuesday-Blitz-April-02-2024"]
[Site "Chess.com"]
[Date "2024.04.02"]
[Round "10"]
[White "dosto07"]
[Black "manitodeplomo"]
[Result "1/2-1/2"]
[WhiteElo "2448"]
[BlackElo "2634"]
[TimeControl "180+1"]
[EndTime "9:58:00 PDT"]
[Termination "Game drawn - insufficient material"]

1. e4 {[%clk 0:03:00.9]} 1... e6 {[%clk 0:02:51.4]} 2. d4 {[%clk 0:03:00.6]}
2... d6 {[%clk 0:02:51.1]} 3. Nf3 {[%clk 0:02:59.1]} 3... g6 {[%clk 0:02:51.1]}
4. Nc3 {[%clk 0:02:59.3]} 4... Bg7 {[%clk 0:02:51.6]} 5. Bf4 {[%clk 0:02:59.7]}
5... h6 {[%clk 0:02:51.8]} 6. h4 {[%clk 0:02:59.2]} 6... a6 {[%clk 0:02:51.9]}
7. a4 {[%clk 0:02:57.4]} 7... b6 {[%clk 0:02:50.9]} 8. Qd2 {[%clk 0:02:57.1]}
8... Nd7 {[%clk 0:02:49.9]} 9. Bd3 {[%clk 0:02:49.9]} 9... Bb7 {[%clk
0:02:49.6]} 10. O-O {[%clk 0:02:47.8]} 10... Ngf6 {[%clk 0:02:44.4]} 11. Rfe1
{[%clk 0:02:45.9]} 11... Ng4 {[%clk 0:02:42.9]} 12. Bg3 {[%clk 0:02:36.3]} 12...
Qe7 {[%clk 0:02:36.9]} 13. Qe2 {[%clk 0:02:35.8]} 13... e5 {[%clk 0:02:26.7]}
14. dxe5 {[%clk 0:02:33.3]} 14... Ndxe5 {[%clk 0:02:24.4]} 15. Nxe5 {[%clk
0:02:33.4]} 15... Nxe5 {[%clk 0:02:21.8]} 16. Nd5 {[%clk 0:02:28.8]} 16... Qd8
{[%clk 0:02:16.5]} 17. h5 {[%clk 0:02:28.3]} 17... O-O {[%clk 0:02:13.8]} 18.
hxg6 {[%clk 0:02:19.1]} 18... fxg6 {[%clk 0:02:12.8]} 19. Bc4 {[%clk 0:02:17.9]}
19... Kh7 {[%clk 0:02:12.2]} 20. c3 {[%clk 0:02:12.7]} 20... h5 {[%clk
0:02:04.2]} 21. Nf4 {[%clk 0:02:04.2]} 21... Bc8 {[%clk 0:01:05.8]} 22. Ne6
{[%clk 0:02:03.4]} 22... Bxe6 {[%clk 0:01:03.4]} 23. Bxe6 {[%clk 0:02:04]} 23...
Qg5 {[%clk 0:00:56.3]} 24. Qe3 {[%clk 0:01:55]} 24... Qxe3 {[%clk 0:00:53.7]}
25. Rxe3 {[%clk 0:01:54.6]} 25... Bh6 {[%clk 0:00:54.6]} 26. Ree1 {[%clk
0:01:53.2]} 26... Bf4 {[%clk 0:00:54.4]} 27. a5 {[%clk 0:01:40.6]} 27... Bxg3
{[%clk 0:00:52.1]} 28. fxg3 {[%clk 0:01:40.9]} 28... b5 {[%clk 0:00:51.2]} 29.
Rf1 {[%clk 0:01:37.3]} 29... Kg7 {[%clk 0:00:50.5]} 30. Bd5 {[%clk 0:01:36.8]}
30... c6 {[%clk 0:00:48.7]} 31. Bb3 {[%clk 0:01:36.8]} 31... Rxf1+ {[%clk
0:00:41.3]} 32. Rxf1 {[%clk 0:01:34.8]} 32... Rf8 {[%clk 0:00:41.8]} 33. Rd1
{[%clk 0:01:21.4]} 33... Rf6 {[%clk 0:00:39.4]} 34. Rf1 {[%clk 0:01:08.9]} 34...
Rxf1+ {[%clk 0:00:36.4]} 35. Kxf1 {[%clk 0:01:09.3]} 35... Kf6 {[%clk
0:00:36.5]} 36. Ke2 {[%clk 0:01:08.8]} 36... Ke7 {[%clk 0:00:35.7]} 37. Ke3
{[%clk 0:01:07.4]} 37... g5 {[%clk 0:00:30.4]} 38. Kd4 {[%clk 0:00:56.8]} 38...
Kf6 {[%clk 0:00:21.2]} 39. Bd1 {[%clk 0:00:52.5]} 39... h4 {[%clk 0:00:20.1]}
40. gxh4 {[%clk 0:00:51.6]} 40... gxh4 {[%clk 0:00:21]} 41. Bh5 {[%clk 0:00:42]}
41... Ke7 {[%clk 0:00:20.1]} 42. b4 {[%clk 0:00:39.2]} 42... Kf6 {[%clk
0:00:14.1]} 43. Ke3 {[%clk 0:00:34.7]} 43... Kg5 {[%clk 0:00:11.6]} 44. Be2
{[%clk 0:00:29.4]} 44... Nd7 {[%clk 0:00:08.7]} 45. c4 {[%clk 0:00:27.8]} 45...
Ne5 {[%clk 0:00:07.1]} 46. cxb5 {[%clk 0:00:26.7]} 46... cxb5 {[%clk 0:00:08]}
47. Kd4 {[%clk 0:00:25.2]} 47... Kf4 {[%clk 0:00:06]} 48. Kd5 {[%clk 0:00:21.7]}
48... Ke3 {[%clk 0:00:05]} 49. Bf1 {[%clk 0:00:18.4]} 49... Kf2 {[%clk
0:00:04.3]} 50. Bxb5 {[%clk 0:00:17.7]} 50... axb5 {[%clk 0:00:05.1]} 51. a6
{[%clk 0:00:11.3]} 51... Nc4 {[%clk 0:00:04.6]} 52. Kc6 {[%clk 0:00:09.8]} 52...
Kxg2 {[%clk 0:00:04]} 53. a7 {[%clk 0:00:10]} 53... h3 {[%clk 0:00:04.2]} 54.
a8=Q {[%clk 0:00:09.5]} 54... h2 {[%clk 0:00:03.5]} 55. Qg8+ {[%clk 0:00:10]}
55... Kf2 {[%clk 0:00:03.2]} 56. Qf7+ {[%clk 0:00:09.5]} 56... Kg1 {[%clk
0:00:02.8]} 57. Qg6+ {[%clk 0:00:09.7]} 57... Kf2 {[%clk 0:00:03]} 58. Qf5+
{[%clk 0:00:09.5]} 58... Kg2 {[%clk 0:00:03.5]} 59. Qg5+ {[%clk 0:00:09.7]}
59... Kf2 {[%clk 0:00:03.8]} 60. Qh4+ {[%clk 0:00:09.8]} 60... Kg2 {[%clk
0:00:03.9]} 61. Qg4+ {[%clk 0:00:10]} 61... Kf2 {[%clk 0:00:04.2]} 62. Qf4+
{[%clk 0:00:10.3]} 62... Kg2 {[%clk 0:00:04.5]} 63. Qg5+ {[%clk 0:00:10.3]}
63... Kf2 {[%clk 0:00:04.7]} 64. Qh4+ {[%clk 0:00:10.2]} 64... Kg2 {[%clk
0:00:05]} 65. Kxb5 {[%clk 0:00:10.6]} 65... Ne5 {[%clk 0:00:03.4]} 66. Ka6
{[%clk 0:00:09.5]} 66... h1=Q {[%clk 0:00:03.2]} 67. Qxh1+ {[%clk 0:00:09.7]}
67... Kxh1 {[%clk 0:00:04.1]} 68. b5 {[%clk 0:00:10.2]} 68... Kg2 {[%clk
0:00:04.3]} 69. b6 {[%clk 0:00:10.6]} 69... Kf3 {[%clk 0:00:04.4]} 70. b7 {[%clk
0:00:10.8]} 70... Nd7 {[%clk 0:00:04.4]} 71. Kb5 {[%clk 0:00:11.3]} 71... Kxe4
{[%clk 0:00:04.2]} 72. Kc6 {[%clk 0:00:11.9]} 72... Nb8+ {[%clk 0:00:04.3]} 73.
Kxd6 {[%clk 0:00:12.3]} 73... Kd4 {[%clk 0:00:04.6]} 74. Kc7 {[%clk 0:00:12.5]}
74... Na6+ {[%clk 0:00:04.5]} 75. Kb6 {[%clk 0:00:13.2]} 75... Nb8 {[%clk
0:00:04.8]} 76. Kc7 {[%clk 0:00:12.9]} 76... Na6+ {[%clk 0:00:05.1]} 77. Kc6
{[%clk 0:00:12.9]} 77... Kc4 {[%clk 0:00:04.7]} 78. Kb6 {[%clk 0:00:13.2]} 78...
Nb8 {[%clk 0:00:05]} 79. Kc7 {[%clk 0:00:13.8]} 79... Na6+ {[%clk 0:00:05.3]}
80. Kb6 {[%clk 0:00:14.5]} 80... Nb8 {[%clk 0:00:05.5]} 81. Kc7 {[%clk
0:00:14.7]} 81... Na6+ {[%clk 0:00:05.9]} 82. Kc8 {[%clk 0:00:15.6]} 82... Kb5
{[%clk 0:00:05.7]} 83. b8=Q+ {[%clk 0:00:14.8]} 83... Nxb8 {[%clk 0:00:06]}
1/2-1/2